Cogmind - Beta 13 @@@ ROGUE MODE // 2024.06.11 @ 13:12:53 Player: lucasboxerhead Result: Self-destructed Performance ------------- Evolutions (2) 1000 Regions Visited (3) 600 Robots Destroyed (33) 165 Value Destroyed (493) 493 Prototype IDs (0) 0 Alien Tech Used (0) 0 Bonus (11) 11 TOTAL SCORE: 2269 Bonus ------- High Alert Combat Kills 11 Cogmind --------- Core Integrity 410/550 Matter 141/300 Energy 73/125 System Corruption 0% Temperature Cool (56) Movement Flying (120) Ox1 Location -8/Materials Parts ------- > --- POWER (2) -------- Light Ion Engine > --- PROPULSION (3) --- Flight Unit > --- UTILITY (4) ------ Improved Sensor Array Signal Interpreter Improved Terrain Scanner Improved Targeting Computer > --- WEAPON (2) ------- Heavy EM Pulse Gun > --- INVENTORY (5) ---- Light Deuterium Engine Cooling System Improved Sensor Array Minigun Improved Datajack Peak State ------------ > --- POWER ------------ Light Deuterium Engine > --- PROPULSION ------- Flight Unit Flight Unit Flight Unit > --- UTILITY ---------- Signal Interpreter Improved Terrain Scanner Improved Targeting Computer > --- WEAPON ----------- Shock Rifle Improved Datajack > --- INVENTORY -------- Light Deuterium Engine Cooling System Light Armor Plating Minigun Datajack [Rating: 19] Favorites ----------- Power Ion Engine Engine Ion Engine Power Core Light Nuclear Core Propulsion Flight Unit Treads Light Treads Hover Unit Hover Unit Flight Unit Flight Unit Utility Signal Interpreter Device Improved Terrain Scanner Storage Medium Storage Unit Processor Signal Interpreter Weapon Medium Laser Energy Gun Medium Laser Ballistic Gun Minigun Launcher Grenade Launcher Special Melee Weapon Improved Datajack Build | -11 -10 -9 -8 ------- Run | Yrd Mat Mat Mat Slots Evolved 4 | . . 2 2 Power 1 | . . 1 . Propulsion 1 | . . 1 . Utility 2 | . . . 2 Weapon . | . . . . Parts Attached 42 | 6 16 10 10 Power 7 | 1 2 3 1 Engine 6 | 1 1 3 1 Core 1 | . 1 . . Reactor . | . . . . Propulsion 12 | 2 4 3 3 Treads 2 | 2 . . . Leg . | . . . . Wheel . | . . . . Hover 2 | . 2 . . Flight 8 | . 2 3 3 Utility 8 | 1 4 1 2 Device 3 | . 1 . 2 Storage 3 | 1 2 . . Processor 2 | . 1 1 . Hackware . | . . . . Protection . | . . . . Artifact . | . . . . Weapon 15 | 2 6 3 4 Energy Gun 7 | 2 3 . 2 Energy Cannon . | . . . . Ballistic Gun 6 | . 2 3 1 Ballistic Cannon . | . . . . Launcher 1 | . 1 . . Special Weapon . | . . . . Impact Weapon . | . . . . Slashing Weapon . | . . . . Piercing Weapon . | . . . . Special Melee Weapon 1 | . . . 1 Unidentified Prototypes . | . . . . Parts Lost 14 | . 2 5 7 Power 2 | . . 1 1 Propulsion 9 | . 2 2 5 Utility . | . . . . Weapon 3 | . . 2 1 Highest Loss Streak 5 | . 1 5 5 To Critical Strikes 1 | . . 1 . Average Slot Usage (%) 73 | . 80 50 68 Engine 8 | . 8 4 8 Core 3 | . 5 3 . Treads 7 | . 12 . . Hover 3 | . 6 . . Flight 11 | . 4 17 21 Device 2 | . 1 2 4 Storage 4 | . 8 . . Processor 10 | . 5 11 18 Energy Gun 11 | . 19 2 2 Ballistic Gun 5 | . 4 7 6 Launcher 1 | . 2 . . Special Melee Weapon 2 | . . . 7 Naked Turns . | . . . . Heaviest Build 20 | 14 20 8 10 Greatest Support 40 | 40 40 12 12 Greatest Overweight (x) 1 | . 1 . 1 Average Overweight (x) . | . . . . Largest Inventory Capacity 10 | 8 10 5 5 Average Capacity 6 | 6 7 5 5 Most Carried 5 | . 5 5 5 Average Carried 3 | . 2 4 4 Final Capacity 8 | 8 5 5 5 Final Carried 5 | . 5 5 5 Class Distribution -------------------- 48% | Scavenger-Mutant 48% | Mutant 3% | Scavenger-Scout Dominant Class ---------------- Mutant | -10/Materials Mutant | -9/Materials Scavenger-Mutant | -8/Materials Resources | -11 -10 -9 -8 ----------- Run | Yrd Mat Mat Mat Matter Collected 644 | 230 217 70 127 Remotely . | . . . . Salvage Created 899 | . 628 89 182 Parts 58 | . 32 12 14 Haulers Intercepted 1 | . 1 . . Recyclers Shooed 4 | . 3 . 1 Parts Field Recycled . | . . . . Retrieved Matter . | . . . . Parts Self-Destructed . | . . . . Prevented . | . . . . Kills | -11 -10 -9 -8 ------- Run | Yrd Mat Mat Mat Combat Hostiles Destroyed 24 | . 10 5 9 Guns 21 | . 9 5 7 AOE 3 | . 1 . 2 Classes Destroyed 7 | . 5 1 1 Builder 1 | . . 1 . Hauler 1 | . 1 . . Recycler 4 | . 4 . . Watcher 3 | . 3 . . Swarmer 19 | . 6 5 8 Grunt 4 | . 4 . . Sentry 1 | . . . 1 Best Kill Streak 6 | . 6 4 4 Combat Bots Only 4 | . 2 4 4 Max Kills in Single Turn 2 | . 2 1 2 Gunslinging . | . . . . Exploded 2 | . 1 . 2 Melee . | . . . . Uniques/NPCs Destroyed . | . . . . Combat | -11 -10 -9 -8 -------- Run | Yrd Mat Mat Mat Hostile Shots Fired 273 | . 98 102 73 Missed 87 | . 40 28 19 Damage Taken 1732 | . 666 580 486 Core 508 | . 153 215 140 Absorbed by Shields . | . . . . Core Remaining (%) 61 | 100 38 46 . Volleys Fired 149 | . 73 26 50 Largest 2 | . 2 1 1 Hottest 100 | . 100 25 50 Shots Fired 185 | . 109 26 50 Gun 184 | . 108 26 50 Cannon . | . . . . Launcher 1 | . 1 . . Special . | . . . . Kinetic 83 | . 29 26 28 Thermal 79 | . 79 . . Explosive 1 | . 1 . . Electromagnetic 22 | . . . 22 Robot Hit Streak 9 | . 9 3 6 Robot Miss Streak 5 | . 5 4 4 Penetration Max . | . . . . Secondary Targets . | . . . . Shots Hit Robots 109 | . 67 13 29 Core Hits 46 | . 30 6 10 Critical Kills . | . . . . Critical Parts Destroyed . | . . . . Critical Strikes 5 | . 5 . . Burn 5 | . 5 . . Melee Attacks . | . . . . Impact . | . . . . Slashing . | . . . . Piercing . | . . . . Sneak Attacks . | . . . . Combat Hostiles . | . . . . Follow-up Attacks . | . . . . Damage Inflicted 1715 | . 929 270 516 Guns 1526 | . 801 270 455 Cannons . | . . . . Explosions 182 | . 121 . 61 Melee . | . . . . Ramming 7 | . 7 . . Kinetic 719 | . 164 270 285 Thermal 698 | . 637 . 61 Explosive 121 | . 121 . . Electromagnetic 170 | . . . 170 Impact . | . . . . Slashing . | . . . . Piercing . | . . . . Highest Corruption 1 | . 1 . . Average Corruption 1 | . 1 . . Corruption Purged . | . . . . Corruption Blocked . | . . . . Overload Shots . | . . . . Overflow Damage 21 | . . . 21 Projectiles . | . . . . Explosions 21 | . . . 21 Melee . | . . . . Knockbacks . | . . . . Impact . | . . . . Kinetic . | . . . . Secondary . | . . . . Self-Inflicted Damage 39 | . 3 . 36 Shots 1 | . . . 1 Rammed 1 | . 1 . . Targets Rammed 1 | . 1 . . Kicked . | . . . . Crushed . | . . . . Highest Temperature 302 | . 302 8 39 Average Temperature 58 | . 70 4 17 Received Heat Transfer 324 | . 261 . 63 Effects 2 | . 2 . . Interference 2 | . 2 . . Siege Activations . | . . . . Robots Corrupted . | . . . . Combat Hostiles . | . . . . Parts Fried . | . . . . Impact Corruptions . | . . . . Robots Melted . | . . . . Combat Hostiles . | . . . . Parts Melted 2 | . 2 . . Heat Transferred 2307 | . 2257 . 50 Parts Sabotaged . | . . . . Parts Stolen . | . . . . Parts Stripped . | . . . . Power Chain Reactions 1 | . . . 1 Alert | -11 -10 -9 -8 ------- Run | Yrd Mat Mat Mat Peak Influence 422 | . 154 215 422 Initial 90 | . . 65 90 Average 121 | . 71 141 227 Maximum Alert Level 2 | . . 1 2 Low Security (%) 80 | 100 100 68 46 Level 1 19 | . . 31 52 Level 2 . | . . . 1 Level 3 . | . . . . Level 4 . | . . . . Level 5 . | . . . . High Security . | . . . . Max Security . | . . . . Squads Dispatched 3 | . 1 . 2 Investigation . | . . . . Extermination . | . . . . Reinforcement 3 | . 1 . 2 Assault . | . . . . Garrison . | . . . . Intercept . | . . . . Searches Triggered . | . . . . Construction Impeded . | . . . . Haulers Reinforced . | . . . . Active Scanning Responses . | . . . . Cargo Convoy Interrupts . | . . . . Stealth | -11 -10 -9 -8 --------- Run | Yrd Mat Mat Mat Distress Signals 3 | . 3 . . Communications Jammed . | . . . . Distress Signals . | . . . . Times Spotted 47 | . 18 8 21 Peak Tracking Total 7 | . 5 7 7 Tactical Retreats 3 | . 2 . 1 Traps | -11 -10 -9 -8 ------- Run | Yrd Mat Mat Mat Traps Triggered 1 | . 1 . . Indirectly . | . . . . Trap Hack Attempts . | . . . . Triggered . | . . . . Disarmed . | . . . . Reprogrammed . | . . . . Reused . | . . . . Traps Extracted . | . . . . Installed . | . . . . Triggered . | . . . . Machines | -11 -10 -9 -8 ---------- Run | Yrd Mat Mat Mat Machines Disabled 3 | . . 1 2 Max in Single Turn 2 | . . 1 2 Machines Repaired . | . . . . Machines Dismantled . | . . . . Machines Sabotaged . | . . . . Overloaded Fab Kills . | . . . . Hacking | -11 -10 -9 -8 --------- Run | Yrd Mat Mat Mat Machines Accessed 1 | . 1 . . Terminals . | . . . . Fabricators . | . . . . Repair Stations . | . . . . Recycling Units 1 | . 1 . . Scanalyzers . | . . . . Garrison Access . | . . . . Total Hacks 3 | . 3 . . Successful 2 | . 2 . . Failed 1 | . 1 . . Catastrophic . | . . . . Database Lockouts . | . . . . Manual . | . . . . Terminals . | . . . . Fabricators . | . . . . Repair Stations . | . . . . Recycling Units 3 | . 3 . . Scanalyzers . | . . . . Garrison Access . | . . . . Terminal Hacks . | . . . . Fabricator Hacks . | . . . . Repair Station Hacks . | . . . . Recycling Unit Hacks 2 | . 2 . . Retrieve Components 2 | . 2 . . Scanalyzer . | . . . . Garrison Access Hacks . | . . . . Unauthorized Hacks . | . . . . Terminals . | . . . . Fabricators . | . . . . Repair Stations . | . . . . Recycling Units . | . . . . Scanalyzers . | . . . . Garrison Access . | . . . . Data Cores Recovered . | . . . . Used . | . . . . Hacking Detections 1 | . 1 . . Full Trace Events . | . . . . Feedback Events . | . . . . Feedback Blocked . | . . . . Robot Schematics Acquired . | . . . . Robots Built . | . . . . Authchips . | . . . . Time . | . . . . Total Robot Build Rating . | . . . . Part Schematics Acquired . | . . . . Parts Built . | . . . . Authchips . | . . . . Time . | . . . . Total Part Build Rating . | . . . . Parts Repaired . | . . . . Time . | . . . . Parts Recycled . | . . . . Recycled Matter . | . . . . Retrieved Matter . | . . . . Retrieved Components 9 | . 9 . . Parts Scanalyzed . | . . . . Part Schematics Acquired . | . . . . Parts Damaged . | . . . . Bothacking | -11 -10 -9 -8 ------------ Run | Yrd Mat Mat Mat Used RIF Installer . | . . . . Robots Hacked . | . . . . Non-combat . | . . . . Combat . | . . . . Robot Hacks Applied . | . . . . Relay Couplers Released . | . . . . Fabnet Peak Effective % . | . . . . Robots Rewired . | . . . . Allies Hacked . | . . . . Hacks Repelled . | . . . . Allies | -11 -10 -9 -8 -------- Run | Yrd Mat Mat Mat Total Allies . | . . . . Largest Group . | . . . . Highest-Rated Group . | . . . . Highest-Rated Ally . | . . . . Total Orders . | . . . . Ally Attacks . | . . . . Total Damage . | . . . . Kills . | . . . . Allies Corrupted . | . . . . Allies Melted . | . . . . Intel | -11 -10 -9 -8 ------- Run | Yrd Mat Mat Mat Robot Analysis Total . | . . . . Derelict Logs Recovered . | . . . . Drone Launches . | . . . . Drone Recoveries . | . . . . Exploration | -11 -10 -9 -8 ------------- Run | Yrd Mat Mat Mat Turns Passed 1250 | 85 643 142 380 Spaces Moved 1069 | 49 458 162 400 Core 12 | 1 . 8 3 Treads 211 | 48 163 . . Legs . | . . . . Wheels . | . . . . Hover 114 | . 114 . . Flight 732 | . 181 154 397 Fastest Speed 34 | 50 37 34 34 Average Speed 64 | 157 88 36 37 Slowest Speed 160 | 160 160 50 120 Overloaded Moves . | . . . . Propulsion Burnouts . | . . . . Robots Hopped 4 | . 2 2 . Cave-ins Triggered . | . . . . Exploration Rate (%) 26 | 4 61 15 26 Regions Visited 3 Branch Regions . Pre-discovered Areas . | . . . . Known Exits Taken 2 | . 1 1 . Unknown Exits Taken 1 | 1 . . . Scrap Searched . | . . . . Spaces Dug . | . . . . Terrain Destroyed 6 | . 4 . 2 Melee . | . . . . Projectile . | . . . . AOE 6 | . 4 . 2 Terrain Rammed . | . . . . Walls Destroyed . | . . . . Machines Disabled . | . . . . Actions | -11 -10 -9 -8 --------- Run | Yrd Mat Mat Mat Total 1452 | 54 594 221 583 Wait 147 | . 19 13 115 Move 1058 | 48 453 157 400 Hop 4 | . 2 2 . Pick Up 19 | . 11 5 3 Fast Attach 28 | 6 6 8 8 Attach 14 | . 10 2 2 Detach 11 | . 9 1 1 Swap . | . . . . Drop 21 | . 10 7 4 Fire 149 | . 73 26 50 Melee . | . . . . Ram 1 | . 1 . . Kick . | . . . . Crush . | . . . . Escape Stasis . | . . . . Rewire . | . . . . Trap . | . . . . Miscellaneous . | . . . . Route ------- -11/Scrapyard -10/Materials -9/Materials (discovered 2 exits: *Mat / [*Min]) -8/Materials History --------- Turn | Location | Event 49 | -11/Scrapyard | Discovered new exit (range 16) 86 | -11/Scrapyard | Entered Materials 303 | -10/Materials | Build established: Mutant 537 | -10/Materials | Core integrity fell below 50% 727 | -10/Materials | Discovered new exit (range 8) 729 | -10/Materials | Identified exit to Materials 729 | -10/Materials | Entered another Materials area 729 | -9/Materials | Evolved 2 slots: Power x1, Propulsion x1 733 | -9/Materials | Build established: Scavenger-Mutant 750 | -9/Materials | Discovered new exit (range 15) 754 | -9/Materials | Discovered new exit (range 14) 759 | -9/Materials | Identified exit to Materials 820 | -9/Materials | Core integrity fell below 50% 840 | -9/Materials | Lost 5 parts (1p2n2w) 871 | -9/Materials | Entered another Materials area 871 | -8/Materials | Evolved 2 slots: Utility x2 1168 | -8/Materials | Lost 5 parts (1p3n1w) 1251 | -8/Materials | Self-destructed Last Messages --------------- 01171_ O-16 Technician uses terminal to summon reinforcements. 01171_ ALERT: Hostiles spotted, dispatching reinforcements to Terminal M012. 01171_ O-16 Technician locks terminal. 01176_ Acquired Hvy. EM Pulse Gun. 01180_ Dropped Datajack. 01181_ Acquired Imp. Sensor Array. 01182_ Dropped Lgt. Armor Plating. 01184_ Acquired Imp. Sensor Array. 01205_ Dropped Imp. Datajack. 01207_ Acquired Imp. Datajack. 01245_ ALERT: Hostiles spotted, dispatching reinforcements to Terminal M008. 01246_ Y-45 Defender misfires. 01247_ Y-45 Defender destroyed. 01251_ Acquired 60 matter. 01251_ Critical hit (Burn: +37). 01251_ Flight Unit destroyed. 01251_ Critical hit (Burn: +37). Map ----- +----------------------------------------------------+ | ???????????????????????# #???????????? ??? ???## | | ???????????????????????# #???????????? ???# #???# | | ???????????????????????# #????????###+#???# #???# | | ???????????????????????# ##########T# ##### ##### | | ???????????????????????# | | ???????????????????????# ######+##+ | | ???????????????????????#]] """ ## | | ???????????????????????#]! """ /## | | ????????????#?????????## /!!! """ ## | | ??????????????????????# ! ## | | ??????????????????????+ !! ########## | | ??????????????????????#k ##### #????????? | | ??????????????????????#ag#### #??## #????????? | | ??????????????????????# #??#+###### #????????? | | ????????????????????? #??# # #????????? | | ????????????????????####g#??# """ + #????????? | | ???????????????????????#g#?## """ # #????????? | | ?????????????????????### #### """? # #????????? | | ?????????????????????# g ## "????# #????????? | | ?????????????????????# ??? ??? # ##???????? | | ?????????????????????+ g ?#??????# #????????? | | ?????????????????????# ????????# ########## | | ?????????????????????# ????????# | | ??????????????????????# ##########+############# | | ??????????????????????# # #???? ????? | | ??????????????????????# @/! #?????????? | | ??????????????????????# #= #?????????? | | ??????????????????#???# # #?????????? | | ??????????????????????# # #?????????? | | ???????????#???????? ?# ##############?? ??????? | | ??????????????????????+ #??????????????????????? | | ??????????????????????# #????? ????????????????? | | ????????????????? ????+ #??????????? ??????????? | | ??????????????????????### #???????? ? ? ?????????? | | ?????????????????? ?????# #??????????????????????? | | ????????????????????????? ??? ???????????????????? | | ??????????????????????#?? ??????????? ???????????? | | ????????????????????#?#?? ?#?????????????????????? | | ???????????????????????x? ???????????????????????? | | ????????????????????????? ???????????????????????? | | ????????????????????????? ?????#???????"?????????? | | ????????????????????????? ???????????????????????? | | ?????????????????????????????????????????????????? | | ?????????????????????????????????????????????????? | | ?????????????????????????????????????????????????? | | ?????????????????????????????????????????????????? | | ?????????????????????????????????????????????????? | | ?????????????????????????????????????????????????? | | ?????????????????????????????????????????????????? | | ?????????????????????????????????????????????????? | +----------------------------------------------------+ Best States ------------- Heat Dissipation 38 Energy Generation 14 Energy Capacity 250 Matter Stores 300 Matter Capacity 300 Sight Range 16 Robot Scan Range 15 Terrain Scan Range 16 Terrain Scan Density 10 Evasion (%) 63 Targeting Accuracy 6 Recoil Reduction 2 Item Schematics ----------------- None Robot Schematics ------------------ None Fabricated ------------ Nothing Alien Tech Used ----------------- None Achievements -------------- None Challenges ------------ None Game ------ Seed ArmoredCommLog Manual? 0 Play Time 00:17:28 Cumulative 15.8 hours Start 2024.06.11 @ 12:59:01 End 2024.06.11 @ 13:12:53 Sessions 1 Manual Loads 0 Difficulty Rogue Special Mode None Game No. 69 Rogue 66 Adventurer 3 Explorer 0 Win Type - Total 0 Types 0/0/0/0/0/0/0/0/0 Lore% 12 Gallery% 22 Achievement% 18 Wizard Run 0 Options --------- Layout 1 ASCII 0 Keyboard 1 Movement Numpad Keybinds 0 Fullscreen 1 Font 24/Smallcaps Map View 50x35 Zoom Use 0% Tactical HUD 1 Map Filters NONE Filters NONE Steam 1 RUN: 762a818d-d113-4750-920a-9e5920d1b41f